bitfinex/quotes_BTCUSD_20241022
["timestamp","ask_amount","ask_price","bid_price","bid_amount"]
[1729560538365,0.000826,67497.0,67496.0,0.1542045]
[1729560538599,0.000826,67497.0,67496.0,0.30316365]
[1729560540127,0.000826,67497.0,67496.0,0.30716365]
[1729560541479,0.000826,67497.0,67496.0,0.31016365]
[1729560542376,0.000826,67497.0,67496.0,0.48393363]
[1729560543041,0.000826,67497.0,67496.0,0.65770361]
[1729560543254,0.000826,67497.0,67496.0,0.62133363]
[1729560543710,0.000826,67497.0,67496.0,0.61433363]
[1729560543934,0.000826,67497.0,67496.0,0.62533363]
[1729560544130,0.000826,67497.0,67496.0,0.62233363]
[1729560544253,0.000826,67497.0,67496.0,0.56553363]
[1729560544482,0.000826,67497.0,67496.0,0.55853363]
[1729560544696,0.002826,67497.0,67496.0,0.55953363]
[1729560547772,0.002826,67497.0,67496.0,0.56118563]
[1729560548174,0.002826,67497.0,67496.0,0.55618563]
[1729560548384,0.002826,67497.0,67496.0,0.31181565]
[1729560553372,0.04434702,67513.0,67512.0,0.01]
[1729560553617,0.13894702,67527.0,67523.0,0.296191]
[1729560553852,0.0946,67527.0,67526.0,0.148091]
[1729560555481,0.0946,67527.0,67526.0,0.158091]
[1729560555700,0.0946,67527.0,67526.0,0.150091]
[1729560555953,0.0946,67527.0,67526.0,0.161091]
[1729560556426,0.0946,67527.0,67526.0,0.167091]
[1729560556684,0.0946,67527.0,67526.0,0.31605015]
[1729560556897,0.0946,67527.0,67526.0,0.161091]
[1729560557120,0.0946,67527.0,67526.0,0.172091]
[1729560560605,0.095426,67527.0,67526.0,0.172091]
[1729560562877,0.000825,67533.0,67532.0,0.155077]
[1729560563101,0.000825,67533.0,67532.0,0.31199702]
[1729560563325,0.00068168,67534.0,67533.0,0.260075]
[1729560563569,0.00068168,67534.0,67533.0,0.57780413]
[1729560563823,0.00068168,67534.0,67533.0,0.72563254]
[1729560564254,0.00068168,67534.0,67533.0,0.57780413]
[1729560565462,0.00068168,67534.0,67533.0,0.59180413]
[1729560565915,0.00068168,67534.0,67533.0,0.60580413]
[1729560567208,0.00068168,67534.0,67533.0,0.60080413]
[1729560569568,0.00068168,67534.0,67533.0,0.50080413]
[1729560571465,0.00068168,67534.0,67533.0,0.33203415]
[1729560571879,0.00068168,67534.0,67533.0,0.50080413]
[1729560576088,0.00068168,67534.0,67533.0,0.33203415]
[1729560576549,0.01816375,67534.0,67533.0,0.176075]
[1729560577003,0.01816375,67534.0,67533.0,0.028]
[1729560577230,0.34333675,67534.0,67533.0,0.028]
[1729560577674,0.34333675,67534.0,67533.0,0.014]
[1729560577974,0.34833675,67534.0,67533.0,0.014]
[1729560578202,0.34833675,67534.0,67533.0,0.028]
[1729560578440,0.14808,67531.0,67525.0,0.002]
[1729560578656,0.14808,67531.0,67529.0,0.22312298]
[1729560578875,0.14808,67531.0,67527.0,0.148088]
[1729560579095,0.14808,67531.0,67529.0,0.002]
[1729560579554,0.148079,67532.0,67529.0,0.002]
[1729560579789,0.14808,67531.0,67527.0,0.148088]
[1729560580441,0.148081,67531.0,67526.0,0.14809]
[1729560580921,0.148083,67530.0,67526.0,0.14809]
[1729560581137,0.296155,67532.0,67526.0,0.14809]
[1729560581349,0.14808,67531.0,67527.0,0.001]
[1729560581565,0.14808,67531.0,67526.0,0.14809]
[1729560582049,0.14808,67531.0,67526.0,0.14909]
[1729560582489,0.14808,67531.0,67527.0,0.001]
[1729560582730,0.328286,67528.0,67527.0,0.001]
[1729560582952,0.005,67524.0,67522.0,0.22312298]
[1729560583199,0.313097,67523.0,67522.0,0.22312298]
[1729560583433,0.148104,67520.0,67515.0,0.37123698]
[1729560583668,0.148104,67520.0,67516.0,0.148112]
[1729560583893,0.2095298,67522.0,67516.0,0.148112]
[1729560584394,0.2095298,67522.0,67517.0,0.14811]
[1729560584606,0.2095298,67522.0,67516.0,0.444339]
[1729560584823,0.2095298,67522.0,67517.0,0.14811]
[1729560585045,0.313097,67523.0,67522.0,0.001]
[1729560585992,0.165,67523.0,67518.0,0.148108]
[1729560586218,0.1481,67522.0,67518.0,0.148108]
[1729560587285,0.148105,67520.0,67516.0,0.002]
[1729560587640,0.148107,67519.0,67515.0,0.22312298]
[1729560587856,0.2560264,67521.0,67516.0,0.148112]
[1729560588054,0.1649,67523.0,67518.0,0.005]
[1729560588292,0.148103,67521.0,67518.0,0.005]
[1729560588504,0.148103,67521.0,67518.0,0.003]
[1729560588854,0.148003,67521.0,67518.0,0.003]
[1729560589067,0.148003,67521.0,67516.0,0.148112]
[1729560589068,0.147303,67521.0,67516.0,0.148112]
[1729560589285,0.148107,67519.0,67515.0,0.005]
[1729560589508,0.148004,67521.0,67514.0,0.002]
[1729560589713,0.147904,67521.0,67516.0,0.148111]
[1729560589915,0.147504,67521.0,67518.0,0.003]
[1729560590124,0.147204,67521.0,67518.0,0.003]
[1729560590326,0.147104,67521.0,67518.0,0.005]
[1729560590531,0.147004,67521.0,67518.0,0.003]
[1729560590733,0.46486998,67522.0,67518.0,0.003]
[1729560590960,0.148001,67522.0,67518.0,0.003]
[1729560591179,0.147801,67522.0,67518.0,0.151107]
[1729560591396,0.147601,67522.0,67518.0,0.151107]
[1729560591596,0.147601,67522.0,67518.0,0.155107]
[1729560591727,0.296199,67522.0,67518.0,0.003]
[1729560591933,0.148006,67519.0,67518.0,0.003]
[1729560592138,0.296204,67521.0,67514.0,0.002]
[1729560592139,0.148009,67518.0,67514.0,0.002]
[1729560592359,0.147809,67518.0,67514.0,0.153115]
[1729560592770,0.148006,67520.0,67514.0,0.150115]
[1729560592976,0.148106,67519.0,67514.0,0.002]
[1729560593172,0.148107,67519.0,67518.0,0.001]
[1729560593695,0.148104,67520.0,67518.0,0.001]
[1729560593919,0.148104,67520.0,67516.0,0.148112]
[1729560594576,0.148107,67519.0,67514.0,0.150116]
[1729560595230,0.002,67520.0,67511.0,0.298244]
[1729560595436,0.002,67520.0,67515.0,0.148114]
[1729560595612,0.002,67520.0,67512.0,0.296243]
[1729560595809,0.148108,67518.0,67513.0,0.148118]
[1729560596291,0.0781785,67518.0,67511.0,0.002]
[1729560596493,0.0781785,67518.0,67515.0,0.148113]
[1729560596694,0.002,67520.0,67516.0,0.148112]
[1729560596804,0.004,67520.0,67516.0,0.148112]
[1729560597003,0.150104,67520.0,67516.0,0.148112]
[1729560597288,0.001,67518.0,67514.0,0.296234]
[1729560597492,0.001,67518.0,67515.0,0.148114]
[1729560597693,0.150104,67520.0,67516.0,0.148112]
[1729560598324,0.150104,67520.0,67514.0,0.148115]
[1729560598325,0.148106,67520.0,67514.0,0.148115]
[1729560598536,0.001,67518.0,67514.0,0.148115]
[1729560598737,0.001,67518.0,67515.0,0.148114]
[1729560598966,0.16876998,67521.0,67516.0,0.148112]
[1729560599210,0.16876998,67521.0,67517.0,0.14811]
[1729560599418,0.148101,67522.0,67515.0,0.002]
[1729560599419,0.002,67520.0,67515.0,0.002]
[1729560599629,0.001,67518.0,67517.0,0.14811]
[1729560599859,0.148102,67521.0,67517.0,0.14811]
[1729560600445,0.148105,67520.0,67515.0,0.148113]
[1729560600650,0.16876998,67521.0,67515.0,0.148114]
[1729560600846,0.16876998,67521.0,67513.0,0.296239]
[1729560600847,0.26193808,67521.0,67512.0,0.002]
[1729560601102,0.41204108,67521.0,67516.0,0.148112]
[1729560601308,0.31887298,67521.0,67517.0,0.14811]
[1729560601506,0.17076998,67521.0,67514.0,0.298234]
[1729560601715,0.31687298,67521.0,67516.0,0.148113]
[1729560601863,0.296208,67520.0,67512.0,0.002]
[1729560602217,0.148109,67518.0,67514.0,0.148116]
[1729560602433,0.0635504,67520.0,67512.0,0.296243]
[1729560602650,0.0635504,67520.0,67499.0,0.16876998]
[1729560602651,0.0807,67515.0,67507.0,0.296265]
[1729560602871,0.148124,67511.0,67508.0,0.22312298]
[1729560603077,0.16876998,67513.0,67508.0,0.22312298]
[1729560603284,0.35177698,67513.0,67508.0,0.14813]
[1729560603536,0.148122,67512.0,67508.0,0.14813]
[1729560603992,0.034887,67513.0,67508.0,0.006]
[1729560603993,0.16876998,67509.0,67508.0,0.006]
[1729560604242,0.31689798,67509.0,67508.0,0.006]
[1729560604456,0.39559798,67509.0,67508.0,0.006]
[1729560604673,0.0936,67508.0,67500.0,0.22312298]
[1729560604879,0.46505398,67503.0,67500.0,0.22312298]
[1729560605107,0.148143,67502.0,67500.0,0.22312298]
[1729560605330,0.148143,67502.0,67497.0,0.148154]
[1729560605331,0.16876998,67503.0,67497.0,0.005]
[1729560605553,0.0936,67508.0,67498.0,0.52107698]
[1729560605774,0.0936,67508.0,67507.0,0.148132]
[1729560605987,0.23507818,67517.0,67507.0,0.15395915]
[1729560605988,0.1741,67517.0,67507.0,0.15395915]
[1729560606215,0.1741,67517.0,67516.0,0.148113]
[1729560606652,0.1741,67517.0,67511.0,0.296248]
[1729560606861,0.1741,67517.0,67512.0,0.002]
[1729560607083,0.148102,67521.0,67516.0,0.148113]
[1729560607305,0.002,67517.0,67516.0,0.002]
[1729560607721,0.444307,67521.0,67516.0,0.002]
[1729560607927,0.444307,67521.0,67518.0,0.002]
[1729560607928,0.148107,67519.0,67518.0,0.002]
[1729560608141,0.174926,67523.0,67516.0,0.296226]
[1729560608790,0.005,67517.0,67516.0,0.444339]
[1729560608996,0.005,67517.0,67516.0,0.148113]
[1729560609195,0.148105,67520.0,67515.0,0.002]
[1729560609402,0.444303,67522.0,67515.0,0.150113]
[1729560609612,0.174926,67523.0,67515.0,0.150113]
[1729560609613,0.002,67517.0,67515.0,0.298227]
[1729560609855,0.177926,67523.0,67516.0,0.150113]
[1729560610100,0.148102,67521.0,67518.0,0.002]
[1729560610325,0.174926,67523.0,67516.0,0.151113]
[1729560610552,0.000826,67520.0,67518.0,0.002]
[1729560610788,0.000826,67520.0,67519.0,0.444318]
[1729560611289,0.000826,67520.0,67519.0,0.446318]
[1729560611762,0.000826,67520.0,67519.0,0.444318]
[1729560612019,0.000826,67520.0,67519.0,0.59827715]
[1729560612313,0.000826,67520.0,67519.0,0.77404713]
[1729560612546,0.000826,67520.0,67519.0,0.85274713]
[1729560613040,0.000826,67520.0,67519.0,0.85674713]
[1729560613277,0.000826,67520.0,67519.0,0.85174713]
[1729560613538,0.000826,67520.0,67519.0,0.84774713]
[1729560613785,0.000826,67520.0,67519.0,0.60427715]
[1729560613786,0.006826,67520.0,67519.0,0.60427715]
[1729560614018,0.006826,67520.0,67519.0,0.60127715]
[1729560614274,0.008826,67520.0,67519.0,0.60227715]
[1729560614755,0.008826,67520.0,67519.0,0.62193279]
[1729560615274,0.002826,67520.0,67519.0,0.62093279]
[1729560615502,0.008826,67520.0,67519.0,0.60227715]
[1729560615736,0.006826,67520.0,67519.0,0.60127715]
[1729560615970,0.000826,67520.0,67519.0,0.61927715]
[1729560616357,0.000826,67520.0,67519.0,0.75617715]
[1729560616358,0.001826,67520.0,67519.0,0.75617715]
[1729560616595,0.001826,67520.0,67519.0,0.77017715]
[1729560619681,0.001826,67520.0,67519.0,0.89485926]
[1729560620002,0.001826,67520.0,67519.0,0.77017715]
[1729560620204,0.001826,67520.0,67519.0,0.77678926]
[1729560622498,0.001826,67520.0,67519.0,0.87678926]
[1729560622982,0.001826,67520.0,67519.0,0.87844126]
[1729560623400,0.001826,67520.0,67519.0,0.88344126]
[1729560623609,0.001826,67520.0,67519.0,1.19291976]
[1729560624708,0.001826,67520.0,67519.0,1.02414978]
[1729560625456,0.001826,67520.0,67519.0,1.19291976]
[1729560625654,0.001826,67520.0,67519.0,1.02414978]
[1729560626509,0.001826,67520.0,67519.0,1.19291976]
[1729560628445,0.001826,67520.0,67519.0,1.02414978]
[1729560629954,0.001826,67520.0,67519.0,1.19491976]
[1729560631421,0.001826,67520.0,67519.0,1.21791976]
[1729560632412,0.000826,67520.0,67519.0,1.19091976]
[1729560632833,0.002826,67520.0,67519.0,1.19091976]
[1729560633281,0.000826,67520.0,67519.0,1.19091976]
[1729560633725,0.00068168,67534.0,67533.0,0.260075]
[1729560633939,0.00068168,67534.0,67533.0,0.75953482]
[1729560634139,0.00068168,67534.0,67533.0,0.58780413]
[1729560634565,0.00068168,67534.0,67533.0,0.75657411]
[1729560634977,0.00068168,67534.0,67533.0,0.58780413]
[1729560635185,0.00068168,67534.0,67533.0,0.87488511]
[1729560635394,0.00068168,67534.0,67533.0,0.70811513]
[1729560635593,0.00068168,67534.0,67533.0,0.70611513]
[1729560635803,0.00068168,67534.0,67533.0,0.72011513]
[1729560636006,0.00068168,67534.0,67533.0,0.87488511]
[1729560636218,0.00068168,67534.0,67533.0,0.70811513]
[1729560636421,0.00068168,67534.0,67533.0,0.72211513]
[1729560637043,0.00068168,67534.0,67533.0,0.72011513]
[1729560637273,0.00068168,67534.0,67533.0,0.73411513]
[1729560637477,0.00068168,67534.0,67533.0,0.74060597]
[1729560640385,0.00068168,67534.0,67533.0,0.90937595]
[1729560640671,0.00068168,67534.0,67533.0,0.91137595]
[1729560641623,0.000839,67538.0,67537.0,0.272066]
[1729560641920,0.000839,67538.0,67537.0,0.78922721]
[1729560642132,0.000839,67538.0,67537.0,0.78722721]
[1729560642772,0.000839,67538.0,67537.0,0.78922721]
[1729560642987,0.000839,67538.0,67537.0,0.79144892]
[1729560643169,0.000839,67538.0,67537.0,0.80544892]
[1729560643605,0.000839,67538.0,67537.0,0.81644892]
[1729560644071,0.000839,67538.0,67537.0,0.86470892]
[1729560644465,0.000839,67538.0,67537.0,0.87870892]
[1729560644713,0.000839,67538.0,67537.0,0.87670892]
[1729560645937,0.000839,67538.0,67537.0,0.87870892]
[1729560648897,0.000839,67538.0,67537.0,0.92413233]
[1729560650378,0.000839,67538.0,67537.0,0.70066721]
[1729560650696,0.000839,67538.0,67537.0,0.6552438]
[1729560651253,0.000839,67538.0,67537.0,0.87836678]
[1729560651474,0.08840485,67580.0,67553.0,0.37110584]
[1729560651475,0.04415742,67579.0,67553.0,0.37110584]
[1729560651678,9e-05,67580.0,67553.0,0.63449876]
[1729560651679,0.098939,67565.0,67553.0,0.63449876]
[1729560651839,0.098939,67565.0,67553.0,0.64449876]
[1729560652684,0.166539,67554.0,67553.0,0.53506499]
[1729560653033,0.166539,67554.0,67553.0,0.53706499]
[1729560653211,0.166539,67554.0,67553.0,0.53506499]
[1729560653471,0.166539,67554.0,67553.0,0.52506499]
[1729560653695,0.166539,67554.0,67553.0,0.53506499]
[1729560654043,0.166539,67554.0,67553.0,0.40399015]
[1729560654336,0.166539,67554.0,67553.0,0.41799015]
[1729560654556,0.166539,67554.0,67553.0,0.41899015]
[1729560655041,0.166539,67554.0,67553.0,0.31799015]
[1729560655544,0.166539,67554.0,67553.0,0.33199015]
[1729560657003,0.166539,67554.0,67553.0,0.30399015]
[1729560657435,0.166539,67554.0,67553.0,0.31699015]
[1729560657835,0.166539,67554.0,67553.0,0.30799015]
[1729560658043,0.166539,67554.0,67553.0,0.30099015]
[1729560658246,0.166539,67554.0,67553.0,0.30899015]
[1729560658621,0.166539,67554.0,67553.0,0.30199015]
[1729560659055,0.166539,67554.0,67553.0,0.30499015]
[1729560659254,0.166539,67554.0,67553.0,0.30899015]
[1729560659457,0.166539,67554.0,67553.0,0.003]
[1729560659458,0.35167813,67554.0,67553.0,0.003]
[1729560659657,0.49970713,67554.0,67553.0,0.003]
[1729560659855,0.48305323,67554.0,67553.0,0.005]
[1729560660257,0.48305323,67554.0,67553.0,0.002]
[1729560660664,0.48305323,67554.0,67553.0,0.001]
[1729560661020,0.33502423,67554.0,67553.0,0.001]
[1729560661413,0.166539,67554.0,67553.0,0.001]
[1729560661616,0.166539,67554.0,67552.0,0.148032]
[1729560661873,0.1693,67553.0,67547.0,0.005]
[1729560662105,0.1693,67553.0,67549.0,0.148039]
[1729560662314,0.093,67552.0,67551.0,0.148036]
[1729560662723,0.093,67552.0,67551.0,0.29699515]
[1729560662925,0.093,67552.0,67551.0,0.29899515]
[1729560663341,0.09763198,67552.0,67551.0,0.29899515]
[1729560663740,0.093,67552.0,67551.0,0.30199515]
[1729560664450,0.093,67552.0,67551.0,0.30699515]
[1729560665743,0.093,67552.0,67551.0,0.30399515]
[1729560665899,0.000839,67554.0,67553.0,0.155031]
[1729560666099,0.000839,67554.0,67553.0,0.30695042]
[1729560667596,0.000839,67554.0,67553.0,0.31095042]
[1729560667796,0.000839,67554.0,67553.0,0.31099015]
[1729560667995,0.000839,67554.0,67553.0,0.45326019]
[1729560669112,0.000839,67554.0,67553.0,0.55326019]
[1729560669505,0.000839,67554.0,67553.0,0.56326019]
[1729560669713,0.000839,67554.0,67553.0,1.0591684]
[1729560669885,0.000839,67565.0,67564.0,0.160007]
[1729560670090,0.000839,67565.0,67564.0,0.47745138]
[1729560670869,0.000839,67565.0,67564.0,0.70057436]
[1729560671095,0.000839,67565.0,67564.0,0.84257436]
[1729560671269,0.000839,67565.0,67564.0,0.61945138]
[1729560671468,0.000839,67565.0,67564.0,0.58645138]
[1729560671703,0.000839,67565.0,67564.0,0.41296615]
[1729560671870,0.000839,67565.0,67564.0,0.31296615]
[1729560672277,0.000839,67565.0,67564.0,0.32296615]
[1729560672471,0.000839,67565.0,67564.0,0.30396615]
[1729560672697,0.000839,67565.0,67564.0,0.44347902]
[1729560672967,0.000839,67565.0,67564.0,0.45151929]
[1729560673170,0.000839,67565.0,67564.0,0.32496615]
[1729560673311,0.000839,67565.0,67564.0,0.31396615]
[1729560673718,0.000839,67565.0,67564.0,0.33496615]
[1729560681435,0.33632423,67565.0,67564.0,0.179007]
[1729560681664,0.167839,67565.0,67564.0,0.179007]
[1729560681863,0.167839,67565.0,67564.0,0.031]
[1729560682061,0.167839,67565.0,67564.0,0.179007]
[1729560682304,0.167839,67565.0,67564.0,0.031]
[1729560682530,0.167839,67565.0,67564.0,0.179007]
[1729560682998,0.48432923,67565.0,67564.0,0.031]
[1729560683260,0.40740897,67565.0,67564.0,0.031]
[1729560683487,0.21677319,67565.0,67564.0,0.179007]
[1729560683678,0.21677319,67565.0,67564.0,0.002]
[1729560683885,0.21677319,67565.0,67564.0,0.150007]
[1729560684359,0.21214224,67565.0,67564.0,0.150007]
[1729560684554,0.2167735,67565.0,67564.0,0.150007]
[1729560685166,0.2167735,67565.0,67564.0,0.151007]
[1729560685370,0.2167735,67565.0,67564.0,0.149007]
[1729560685596,0.2167735,67565.0,67564.0,0.148007]
[1729560685794,0.2177735,67565.0,67564.0,0.148007]
[1729560686015,0.2187735,67565.0,67564.0,0.148007]
[1729560686833,0.095,67563.0,67556.0,0.296049]
[1729560687055,0.095,67561.0,67560.0,0.148015]
[1729560687259,0.1708,67559.0,67554.0,0.445739]
[1729560687519,0.0758,67556.0,67554.0,0.001652]
[1729560687750,0.095,67555.0,67554.0,0.149681]
[1729560689633,0.095,67555.0,67554.0,0.152681]
[1729560690354,0.095,67555.0,67554.0,0.156681]
[1729560691077,0.095,67555.0,67554.0,0.149681]
[1729560691614,0.095,67555.0,67554.0,0.151681]
[1729560692298,0.095,67555.0,67554.0,0.154681]
[1729560692661,0.095,67555.0,67554.0,0.151681]
[1729560693689,0.095,67555.0,67554.0,0.148681]
[1729560694349,0.095,67555.0,67554.0,0.146681]
[1729560694562,0.095,67555.0,67554.0,0.150681]
[1729560694774,0.095,67555.0,67554.0,0.153681]
[1729560695224,0.095,67555.0,67554.0,0.30264015]
[1729560695430,0.06646927,67564.0,67558.0,0.15002]
[1729560695431,0.00463155,67559.0,67558.0,0.15002]
[1729560695682,0.1787,67560.0,67559.0,0.150018]
[1729560695904,0.1787,67560.0,67559.0,0.29897715]
[1729560697558,0.0993,67560.0,67559.0,0.29897715]
[1729560697980,0.1003,67560.0,67559.0,0.29897715]
[1729560698873,0.002,67560.0,67559.0,0.52710013]
[1729560699075,0.002,67560.0,67559.0,0.30397715]
[1729560699286,0.000839,67565.0,67564.0,0.148007]
[1729560699600,0.000839,67565.0,67564.0,0.29896615]
[1729560699750,0.000839,67565.0,67564.0,0.65911132]
[1729560699974,0.000839,67565.0,67564.0,0.67915138]
[1729560701066,0.000839,67565.0,67564.0,0.69115138]
[1729560701297,0.000839,67565.0,67564.0,0.84011053]
[1729560701521,0.000839,67565.0,67564.0,0.85011053]
[1729560701773,0.000839,67565.0,67564.0,0.70115138]
[1729560702163,0.000839,67565.0,67564.0,0.71215138]
[1729560702638,0.000839,67565.0,67564.0,0.68915138]
[1729560703059,0.000839,67565.0,67564.0,0.61045138]
[1729560703477,0.000839,67565.0,67564.0,0.60045138]
[1729560704127,0.000839,67565.0,67564.0,0.61045138]
[1729560705253,0.000839,67565.0,67564.0,0.43196615]
[1729560705459,0.000839,67565.0,67564.0,0.32496615]
[1729560705661,0.000839,67565.0,67564.0,0.31996615]
[1729560705866,0.083539,67565.0,67564.0,0.31996615]
[1729560706071,0.083539,67565.0,67564.0,0.32196615]
[1729560706699,0.083539,67565.0,67564.0,0.171007]
[1729560707198,0.083539,67565.0,67564.0,0.173007]
[1729560707904,0.000839,67565.0,67564.0,0.50341127]
[1729560708156,0.000839,67565.0,67564.0,0.50045138]
[1729560708888,0.000839,67565.0,67564.0,0.49545138]
[1729560709117,0.000839,67565.0,67564.0,0.32696615]
[1729560717783,0.25012423,67565.0,67564.0,0.17195915]
[1729560718033,0.78824797,67565.0,67564.0,0.023]
[1729560718268,0.78824797,67565.0,67550.0,0.22312298]
[1729560718269,0.1791,67555.0,67550.0,0.22312298]
[1729560718493,0.34758523,67555.0,67550.0,0.22312298]
[1729560718713,0.35221563,67555.0,67552.0,0.148033]
[1729560718966,0.35221563,67555.0,67550.0,0.37115998]
[1729560719236,0.35221563,67555.0,67550.0,0.22312298]
[1729560719493,0.35221563,67555.0,67551.0,0.37115698]
[1729560719737,0.35221563,67555.0,67551.0,0.22312298]
[1729560720000,0.50024263,67555.0,67551.0,0.22312298]
[1729560720226,0.35421563,67555.0,67551.0,0.22312298]
[1729560720455,0.35321563,67555.0,67551.0,0.22312298]
[1729560720689,0.0056304,67555.0,67554.0,0.29864015]
[1729560720939,0.002,67555.0,67554.0,0.30564015]
[1729560721149,0.001,67555.0,67554.0,0.30564015]
[1729560721387,0.0046304,67562.0,67561.0,0.150014]
[1729560721594,0.0808304,67563.0,67562.0,0.150012]
[1729560721821,0.0808304,67563.0,67562.0,0.29897115]
[1729560722023,0.0762,67563.0,67562.0,0.29897115]
[1729560722660,0.0927,67564.0,67563.0,0.15501]
[1729560722874,0.0927,67564.0,67563.0,0.30396915]
[1729560724020,0.0937,67564.0,67563.0,0.31196915]
[1729560725369,0.001,67564.0,67563.0,0.31196915]
[1729560725800,0.002,67564.0,67563.0,0.31796915]
[1729560727808,0.002,67564.0,67563.0,0.16995915]
[1729560728048,0.01442466,67564.0,67563.0,0.16995915]
[1729560728290,0.00663076,67564.0,67563.0,0.31796915]
[1729560728514,0.001,67564.0,67563.0,0.31196915]
[1729560728764,0.002,67564.0,67563.0,0.31796915]
[1729560729037,0.001,67564.0,67563.0,0.30996915]
[1729560729299,0.150007,67564.0,67563.0,0.014]
[1729560729541,0.32513776,67564.0,67563.0,0.014]
[1729560729786,0.36940296,67564.0,67563.0,0.014]
[1729560730347,0.32413776,67564.0,67563.0,0.006]
[1729560730523,0.17613076,67564.0,67563.0,0.006]
[1729560730726,0.38878306,67564.0,67563.0,0.006]
[1729560730932,0.39078306,67564.0,67563.0,0.006]
[1729560731512,0.16577606,67564.0,67554.0,0.001652]
[1729560731674,0.16848523,67556.0,67554.0,0.001652]
[1729560731880,0.00463076,67555.0,67554.0,0.001652]
[1729560732080,0.148025,67557.0,67554.0,0.001652]
[1729560732081,0.00463076,67556.0,67554.0,0.001652]
[1729560732308,0.00463076,67555.0,67554.0,0.001652]
[1729560732682,0.00463076,67556.0,67554.0,0.001652]
[1729560732908,0.50204299,67555.0,67554.0,0.001652]
[1729560733535,0.50204299,67555.0,67554.0,0.008652]
[1729560733960,0.50204299,67555.0,67554.0,0.001652]
[1729560734163,0.50204299,67555.0,67554.0,0.004652]
[1729560734899,0.49841223,67555.0,67554.0,0.010652]
[1729560735104,0.70735307,67555.0,67554.0,0.010652]
[1729560735327,0.34938523,67544.0,67543.0,0.22312298]
[1729560735558,0.50206817,67544.0,67543.0,0.22312298]
[1729560735769,0.35401717,67544.0,67543.0,0.22312298]
[1729560735971,0.18553194,67544.0,67540.0,0.148059]
[1729560736200,0.148057,67542.0,67538.0,0.001652]
[1729560736452,0.00463194,67543.0,67538.0,0.006652]
[1729560736752,0.18553194,67544.0,67542.0,0.150054]
[1729560736960,0.1839,67544.0,67542.0,0.002]
[1729560737143,0.35238523,67544.0,67538.0,0.001652]
[1729560737378,0.16848523,67541.0,67538.0,0.001652]
[1729560737558,0.148062,67539.0,67538.0,0.001652]
[1729560738205,0.226462,67539.0,67538.0,0.001652]
[1729560738424,0.23109394,67539.0,67538.0,0.001652]
[1729560738645,0.320162,67539.0,67538.0,0.001652]
[1729560738850,0.43445589,67539.0,67538.0,0.001652]
[1729560739052,0.43445589,67539.0,67538.0,0.002652]
[1729560739634,0.43445589,67539.0,67538.0,0.001652]
[1729560739835,0.43445589,67539.0,67538.0,0.003652]
[1729560740044,0.44345589,67539.0,67538.0,0.003652]
[1729560740381,0.44345589,67539.0,67538.0,0.001652]
[1729560740650,0.34179497,67539.0,67538.0,0.002652]
[1729560741297,0.328162,67539.0,67538.0,0.002652]
[1729560741519,0.18473298,67539.0,67538.0,0.002652]
[1729560741735,0.1801,67539.0,67538.0,0.002652]
[1729560741996,0.33279498,67539.0,67538.0,0.002652]
[1729560742243,0.4416454,67539.0,67538.0,0.002652]
[1729560742495,0.44501242,67539.0,67538.0,0.003652]
[1729560742710,0.44964545,67539.0,67538.0,0.003652]
[1729560743144,0.46141375,67539.0,67538.0,0.003652]
[1729560743628,0.45441375,67539.0,67538.0,0.002652]
[1729560744067,0.46123559,67539.0,67538.0,0.003652]
[1729560744283,0.45323559,67539.0,67538.0,0.002652]
[1729560744719,0.46123559,67539.0,67538.0,0.003652]
[1729560748401,0.46864928,67539.0,67538.0,0.003652]
[1729560749335,0.46123559,67539.0,67538.0,0.003652]
[1729560750248,0.45946729,67539.0,67538.0,0.003652]
[1729560750956,0.45446729,67539.0,67538.0,0.003652]
[1729560751420,0.148071,67535.0,67534.0,0.001652]
[1729560751681,0.32760403,67535.0,67534.0,0.001652]
[1729560752908,0.33060403,67535.0,67534.0,0.001652]
[1729560753162,0.3497862,67535.0,67534.0,0.001652]
[1729560753634,0.3447862,67535.0,67534.0,0.001652]
[1729560753875,0.3487862,67535.0,67534.0,0.001652]
[1729560754317,0.3430179,67535.0,67534.0,0.001652]
[1729560754770,0.3570179,67535.0,67534.0,0.002652]
[1729560755221,0.3570179,67535.0,67534.0,0.001652]
[1729560755222,0.3430179,67535.0,67534.0,0.001652]
[1729560755416,0.3560179,67535.0,67534.0,0.002652]
[1729560755707,0.46537174,67535.0,67534.0,0.002652]
[1729560755939,0.46537174,67535.0,67534.0,0.003652]
[1729560755940,0.47937174,67535.0,67534.0,0.003652]
[1729560756165,0.46537174,67535.0,67534.0,0.002652]
[1729560756655,0.48314004,67535.0,67534.0,0.003652]
[1729560756883,0.45914004,67535.0,67534.0,0.001652]
[1729560757113,0.48214004,67535.0,67534.0,0.002652]
[1729560757619,0.47014004,67535.0,67534.0,0.001652]
[1729560758069,0.45809314,67535.0,67534.0,0.001652]
[1729560758520,0.47014136,67535.0,67534.0,0.001652]
[1729560758988,0.48114136,67535.0,67534.0,0.002652]
[1729560761321,0.65310051,67535.0,67534.0,0.002652]
[1729560761558,0.31658723,67521.0,67520.0,0.22312298]
[1729560761807,0.32122136,67521.0,67520.0,0.22312298]
[1729560762246,0.32122136,67521.0,67519.0,0.001652]
[1729560762247,0.148104,67520.0,67519.0,0.001652]
[1729560762497,0.16515275,67520.0,67519.0,0.001652]
[1729560762725,0.27627278,67520.0,67519.0,0.001652]
[1729560763616,0.27927278,67520.0,67519.0,0.001652]
[1729560763880,0.27627278,67520.0,67519.0,0.001652]
[1729560764100,0.28427278,67520.0,67519.0,0.001652]
[1729560764551,0.27627278,67520.0,67519.0,0.001652]
[1729560765498,0.26422403,67520.0,67519.0,0.001652]
[1729560765749,0.2762742,67520.0,67519.0,0.001652]
[1729560765958,0.2842742,67520.0,67519.0,0.001652]
[1729560766163,0.2762742,67520.0,67519.0,0.001652]
[1729560766450,0.2832742,67520.0,67519.0,0.001652]